Workbook

Sheet Mitchell Low Sulfur 2022
B1: Mitchell Low Sulfur - 2022 CAPP
C4: Offer / Plant / Year | D4: Mine | E4: Quantity | G4: Coal Price | H4: Transportation | K4: Offered Quality | O4: Quality Adjusted Delivered Pricing
C5: Mitchell Low Sulfur | E5: Tons | F5: BTU | G5: Coal Price | H5: River / Rail | I5: MP / District | J5: Rate | K5: Btu | L5: lbs. SO2 | M5: Sulfur % | N5: Ash % | O5: Quality Adj. | P5: Quality Adjusted | Q5: Delivered | R5: Comments
C6: 2022 | P6: Delivered Cost | Q6: $MMBTU
C10: Argus Market 05.28.21 | D10: CAPP | G10: 54.85 | H10: Barge | I10: BSR | J10: 9.64 | K10: 12000 | L10: 1.67 | M10: 0.01 | N10: 0.1 | O10: =+((1-$E$24)*(L10*K10*$E$25)/1000000)+(($E$24*L10*K10*$E$26)/1000000) -> 2.233185456 | P10: =G10+J10+O10 -> 66.72318546 | Q10: =P10/(K10/500) -> 2.780132727
C23: Mitchell
C24: FGD Removal Efficiency | E24: 0.98
C25: SO2 Allowance Cost | E25: 1.5
C26: Removal Cost $/Ton | E26: 113.68

Sheet Mitchell Low Sulfur 2023
B1: Mitchell Low Sulfur - 2023 CAPP
C4: Offer / Plant / Year | D4: Mine | E4: Quantity | G4: Coal Price | H4: Transportation | K4: Offered Quality | O4: Quality Adjusted Delivered Pricing
C5: Mitchell Low Sulfur | E5: Tons | F5: BTU | G5: Coal Price | H5: River / Rail | I5: MP / District | J5: Rate | K5: Btu | L5: lbs. SO2 | M5: Sulfur % | N5: Ash % | O5: Quality Adj. | P5: Quality Adjusted | Q5: Delivered | R5: Comments
C6: 2023 | P6: Delivered Cost | Q6: $MMBTU
C7: Blackhawk Coal Sales, LLC | D7: Blue Creek #1 | E7: 650000 | F7: 15600000 | G7: 55.75 | H7: Barge | I7: Quincy LO, WV | J7: 9.88 | K7: 12000 | L7: 1.45 | M7: 0.0087 | N7: 0.1325 | O7: =+((1-$E$22)*(L7*K7*$E$23)/1000000)+(($E$22*L7*K7*$E$24)/1000000) -> 1.93899336 | P7: =G7+J7+O7 -> 67.56899336 | Q7: =P7/(K7/500) -> 2.815374723 | R7: Proposed Purchase
C8: Argus Market 05.28.21 | D8: CAPP | G8: 55.35 | H8: Barge | I8: BSR | J8: 10.02 | K8: 12000 | L8: 1.67 | M8: 0.01 | N8: 0.1 | O8: 2.233185456 | P8: 67.60318546 | Q8: 2.816799394
C21: Mitchell
C22: FGD Removal Efficiency | E22: 0.98
C23: SO2 Allowance Cost | E23: 1.5
C24: Removal Cost $/Ton | E24: 113.68

Sheet Mitchell Low Sulfur 2024
B1: Mitchell Low Sulfur - 2024 CAPP
C4: Offer / Plant / Year | D4: Mine | E4: Quantity | G4: Coal Price | H4: Transportation | K4: Offered Quality | O4: Quality Adjusted Delivered Pricing
C5: Mitchell Low Sulfur | E5: Tons | F5: BTU | G5: Coal Price | H5: River / Rail | I5: MP / District | J5: Rate | K5: Btu | L5: lbs. SO2 | M5: Sulfur % | N5: Ash % | O5: Quality Adj. | P5: Quality Adjusted | Q5: Delivered | R5: Comments
C6: 2024 | P6: Delivered Cost | Q6: $MMBTU
C7: Argus Market 05.28.21 | D7: CAPP | G7: 55.35 | H7: Barge | I7: BSR | J7: 10.02 | K7: 12000 | L7: 1.67 | M7: 0.01 | N7: 0.1 | O7: =+((1-$E$18)*(L7*K7*$E$19)/1000000)+(($E$18*L7*K7*$E$20)/1000000) -> 2.233185456 | P7: =G7+J7+O7 -> 67.60318546 | Q7: =P7/(K7/500) -> 2.816799394
C17: Mitchell
C18: FGD Removal Efficiency | E18: 0.98
C19: SO2 Allowance Cost | E19: 1.5
C20: Removal Cost $/Ton | E20: 113.68

Sheet Mitchell High Sulfur 2022
B1: Mitchell High Sulfur - 2022 NAPP
C4: Offer / Plant / Year | D4: Mine | E4: Quantity | G4: Coal Price | H4: Transportation | K4: Offered Quality | O4: Quality Adjusted Delivered Pricing
C5: Mitchell High Sulfur | E5: Tons | F5: BTU | G5: Coal Price | H5: River / Rail | I5: MP / District | J5: Rate | K5: Btu | L5: lbs. SO2 | M5: Sulfur % | N5: Ash % | O5: Quality Adj. | P5: Quality Adjusted | Q5: Delivered | R5: Comments
C6: 2022 | P6: Delivered Cost | Q6: $MMBTU
C8: Argus Market 05.28.21 | D8: NAPP | G8: 38.75 | H8: Barge | I8: NACCO #1 - Powhatan Pt. LO, OH | J8: 0.84 | K8: 12500 | L8: 6 | M8: 0.0375 | N8: 0.1 | O8: =+((1-$E$16)*(L8*K8*$E$17)/1000000)+(($E$16*L8*K8*$E$18)/1000000) -> 8.35773 | P8: =G8+J8+O8 -> 47.94773 | Q8: =P8/(K8/500) -> 1.9179092
C15: Mitchell
C16: FGD Removal Efficiency | E16: 0.98
C17: SO2 Allowance Cost | E17: 1.5
C18: Removal Cost $/Ton | E18: 113.68

Sheet Mitchell High Sulfur 2023
B1: Mitchell High Sulfur - 2023 NAPP
C4: Offer / Plant / Year | D4: Mine | E4: Quantity | G4: Coal Price | H4: Transportation | K4: Offered Quality | O4: Quality Adjusted Delivered Pricing
C5: Mitchell High Sulfur | E5: Tons | F5: BTU | G5: Coal Price | H5: River / Rail | I5: MP / District | J5: Rate | K5: Btu | L5: lbs. SO2 | M5: Sulfur % | N5: Ash % | O5: Quality Adj. | P5: Quality Adjusted | Q5: Delivered | R5: Comments
C6: 2023 | P6: Delivered Cost | Q6: $MMBTU
C8: Argus Market 05.28.21 | D8: NAPP | G8: 39.75 | H8: Barge | I8: NACCO #1 - Powhatan Pt. LO, OH | J8: 0.88 | K8: 12500 | L8: 6 | M8: 0.0375 | N8: 0.1 | O8: =+((1-$E$15)*(L8*K8*$E$16)/1000000)+(($E$15*L8*K8*$E$17)/1000000) -> 8.35773 | P8: =G8+J8+O8 -> 48.98773 | Q8: =P8/(K8/500) -> 1.9595092
C14: Mitchell
C15: FGD Removal Efficiency | E15: 0.98
C16: SO2 Allowance Cost | E16: 1.5
C17: Removal Cost $/Ton | E17: 113.68

Sheet Mitchell High Sulfur 2024
B1: Mitchell High Sulfur - 2024 NAPP
C4: Offer / Plant / Year | D4: Mine | E4: Quantity | G4: Coal Price | H4: Transportation | K4: Offered Quality | O4: Quality Adjusted Delivered Pricing
C5: Mitchell High Sulfur | E5: Tons | F5: BTU | G5: Coal Price | H5: River / Rail | I5: MP / District | J5: Rate | K5: Btu | L5: lbs. SO2 | M5: Sulfur % | N5: Ash % | O5: Quality Adj. | P5: Quality Adjusted | Q5: Delivered | R5: Comments
C6: 2024 | P6: Delivered Cost | Q6: $MMBTU
C8: Argus Market 05.28.21 | D8: NAPP | G8: 39.75 | H8: Barge | I8: NACCO #1 - Powhatan Pt. LO, OH | J8: 0.88 | K8: 12500 | L8: 6 | M8: 0.0375 | N8: 0.1 | O8: =+((1-$E$15)*(L8*K8*$E$16)/1000000)+(($E$15*L8*K8*$E$17)/1000000) -> 8.35773 | P8: =G8+J8+O8 -> 48.98773 | Q8: =P8/(K8/500) -> 1.9595092
C14: Mitchell
C15: FGD Removal Efficiency | E15: 0.98
C16: SO2 Allowance Cost | E16: 1.5
C17: Removal Cost $/Ton | E17: 113.68
